fUSD/lending_fUSD_20240614
["ID","MTS","AMOUNT","RATE_DAILY","PERIOD"]
[329476175,1718383862508,-500.0,0.00024383,3]
[329476176,1718383862522,-500.0,0.00024383,3]
[329476177,1718383862572,-500.0,0.00024383,3]
[329476178,1718383862589,-500.0,0.00024383,3]
[329476179,1718383862604,-500.0,0.00024383,3]
[329476180,1718383862635,-790.85,0.00024383,3]
[329476181,1718383862650,-500.0,0.00024383,3]
[329476182,1718383862672,-500.0,0.00024383,3]
[329476183,1718383862689,-500.0,0.00024383,3]
[329476184,1718383862725,-500.0,0.00024383,3]
[329476185,1718383862768,-500.0,0.00024383,3]
[329476186,1718383862819,-500.0,0.00024383,3]
[329476187,1718383862886,-500.0,0.00024383,3]
[329476188,1718383862929,-500.0,0.00024383,3]
[329476189,1718383862945,-500.0,0.00024383,3]
[329476190,1718383862960,-507.72,0.00024383,3]
[329476191,1718383863320,-500.0,0.00024383,3]
[329476192,1718383863373,-704.39,0.00024383,3]
[329476193,1718383863413,-500.0,0.00024383,3]
[329476194,1718383863495,-150.0,0.00024383,3]
[329476195,1718383863544,-1728.94,0.00024383,3]
[329476196,1718383863566,-500.0,0.00024383,3]
[329476197,1718383863578,-500.0,0.00024383,3]
[329476198,1718383863621,-500.0,0.00024383,3]
[329476199,1718383863661,-614.18,0.00024383,3]
[329476200,1718383863720,-500.0,0.00024383,3]
[329476201,1718383863788,-1011.57,0.00024383,3]
[329476202,1718383863828,-985.32,0.00024383,3]
[329476203,1718383863877,-804.63,0.00024383,3]
[329476204,1718383863900,-727.28,0.00024383,3]
[329476205,1718383863922,-500.0,0.00024383,3]
[329476206,1718383863968,-500.0,0.00024383,3]
[329476207,1718383863998,-590.96309588,0.00024383,3]
[329476208,1718383864032,-568.19,0.00024383,3]
[329476209,1718383864081,-500.0,0.00024383,3]
[329476210,1718383864107,-500.0,0.00024383,3]
[329476211,1718383864161,-500.0,0.00024383,3]
[329476212,1718383864300,-500.0,0.00024383,3]
[329476213,1718383864332,-500.0,0.00024383,3]
[329476214,1718383864357,-500.0,0.00024383,3]
[329476215,1718383864387,-500.0,0.00024383,3]
[329476216,1718383864472,-500.0,0.00024383,3]
[329476217,1718383864495,-500.0,0.00024383,3]
[329476218,1718383864516,-500.0,0.00024383,3]
[329476219,1718383864578,-500.0,0.00024383,3]
[329476220,1718383864627,-532.58,0.00024383,3]
[329476221,1718383864643,-500.0,0.00024383,3]
[329476222,1718383864655,-500.0,0.00024383,3]
[329476223,1718383864792,-500.0,0.00024383,3]
[329476224,1718383864804,-500.0,0.00024383,3]
[329476225,1718383864875,-500.0,0.00024383,3]
[329476226,1718383864951,-491.89906972,0.00024383,3]
[329476227,1718383864989,-500.0,0.00024383,3]
[329476228,1718383865017,-1589.68,0.00024383,3]
[329476229,1718383865040,-500.0,0.00024383,3]
[329476230,1718383865102,-500.0,0.00024383,3]
[329476231,1718383865118,-692.27,0.00024383,3]
[329476232,1718383865156,-500.0,0.00024383,3]
[329476233,1718383865249,-1762.91,0.00024383,3]
[329476234,1718383865341,-1648.83,0.00024383,3]
[329476235,1718383865388,-500.0,0.00024383,3]
[329476236,1718383865440,-500.0,0.00024383,3]
[329476237,1718383865520,-542.83239305,0.00024383,3]
[329476238,1718383865544,-1035.36,0.00024383,3]
[329476239,1718383865576,-699.07,0.00024383,3]
[329476240,1718383865607,-500.0,0.00024383,3]
[329476241,1718383865650,-1371.75,0.00024383,3]
[329476242,1718383865700,-500.0,0.00024383,3]
[329476243,1718383865745,-182.73646661,0.00024383,3]
[329476244,1718383865805,-500.0,0.00024383,3]
[329476245,1718383865884,-1629.39,0.00024383,3]
[329476246,1718383865924,-1016.82,0.00024383,3]
[329476247,1718383865992,-1155.24,0.00024383,3]
[329476248,1718383866038,-722.97,0.00024383,3]
[329476249,1718383866080,-500.0,0.00024383,3]
[329476250,1718383866149,-500.0,0.00024383,3]
[329476251,1718383866196,-1112.84,0.00024383,3]
[329476252,1718383866229,-500.0,0.00024383,3]
[329476253,1718383866242,-1435.03,0.00024383,3]
[329476254,1718383866317,-500.0,0.00024383,3]
[329476255,1718383866339,-8816.42,0.00024383,3]
[329476256,1718383866406,-500.0,0.00024383,3]
[329476257,1718383866432,-500.0,0.00024383,3]
[329476258,1718383866453,-500.0,0.00024383,3]
[329476259,1718383866538,-500.0,0.00024383,3]
[329476260,1718383866590,-368.18697788,0.00024383,3]
[329476261,1718383866614,-500.0,0.00024383,3]
[329476262,1718383866643,-500.0,0.00024383,3]
[329476263,1718383866695,-500.0,0.00024383,3]
[329476264,1718383866742,-1846.46,0.00024383,3]
[329476265,1718383866777,-500.0,0.00024383,3]
[329476266,1718383866868,-1575.39,0.00024383,3]
[329476267,1718383866894,-500.0,0.00024383,3]
[329476268,1718383866908,-1060.31,0.00024383,3]
[329476269,1718383866935,-500.0,0.00024383,3]
[329476270,1718383866953,-500.0,0.00024383,3]
[329476271,1718383866963,-543.46376708,0.00024383,3]
[329476272,1718383866988,-168.6593725,0.00024383,3]
[329476273,1718383867026,-1462.97,0.00024383,3]
[329476274,1718383867054,-1764.41,0.00024383,3]
[329476275,1718383867140,-2281.71,0.00024383,3]
[329476276,1718383867198,-500.0,0.00024383,3]
[329476277,1718383867225,-500.0,0.00024383,3]
[329476278,1718383867236,-500.0,0.00024383,3]
[329476279,1718383867261,-699.92,0.00024383,3]
[329476280,1718383867291,-500.0,0.00024383,3]
[329476281,1718383867323,-500.0,0.00024383,3]
[329476282,1718383867334,-3054.59,0.00024383,3]
[329476283,1718383867491,-500.0,0.00024383,3]
[329476284,1718383867502,-6693.42,0.00024383,3]
[329476285,1718383867520,-22416.05,0.00024383,3]
[329476286,1718383867532,-500.0,0.00024383,3]
[329476287,1718383867543,-500.0,0.00024383,3]
[329476288,1718383867556,-623.42,0.00024383,3]
[329476289,1718383867579,-903.08,0.00024383,3]
[329476290,1718383867597,-500.0,0.00024383,3]
[329476291,1718383867609,-509.14,0.00024383,3]
[329476292,1718383867626,-500.0,0.00024383,3]
[329476293,1718383867691,-1011.48,0.00024383,3]
[329476294,1718383867703,-500.0,0.00024383,3]
[329476295,1718383867724,-736.52,0.00024383,3]
[329476296,1718383867737,-500.0,0.00024383,3]
[329476297,1718383867762,-731.55,0.00024383,3]
[329476298,1718383867783,-539.32,0.00024383,3]
[329476299,1718383867804,-2586.74,0.00024383,3]
[329476300,1718383867840,-10445.19,0.00024383,3]
[329476301,1718383867860,-500.0,0.00024383,3]
[329476302,1718383867891,-6633.55,0.00024383,3]
[329476303,1718383867934,-500.0,0.00024383,3]
[329476304,1718383867962,-500.0,0.00024383,3]
[329476305,1718383867979,-1023.83,0.00024383,3]
[329476306,1718383868000,-12093.4,0.00024383,3]
[329476307,1718383868011,-500.0,0.00024383,3]
[329476308,1718383868025,-637.44,0.00024383,3]
[329476309,1718383868105,-3358.77,0.00024383,3]
[329476310,1718383868125,-1681.2,0.00024383,3]
[329476311,1718383868136,-878.64,0.00024383,3]
[329476312,1718383868178,-541.29,0.00024383,3]
[329476313,1718383868200,-2498.72,0.00024383,3]
[329476314,1718383868217,-637.7,0.00024383,3]
[329476315,1718383868313,-1413.21,0.00024383,3]
[329476316,1718383868413,-500.0,0.00024383,3]
[329476317,1718383868448,-500.0,0.00024383,3]
[329476318,1718383868536,-500.0,0.00024383,3]
[329476319,1718383868548,-573.65,0.00024383,3]
[329476320,1718383868577,-1540.1,0.00024383,3]
[329476321,1718383868668,-500.0,0.00024383,3]
[329476322,1718383868729,-500.0,0.00024383,3]
[329476323,1718383868777,-665.95,0.00024383,3]
[329476324,1718383868797,-504.13,0.00024383,3]
[329476325,1718383868828,-3924.13,0.00024383,3]
[329476326,1718383868857,-500.0,0.00024383,3]
[329476327,1718383868915,-576.63,0.00024383,3]
[329476328,1718383868932,-2043.84,0.00024383,3]
[329476329,1718383868944,-4997.19,0.00024383,3]
[329476330,1718383868993,-500.0,0.00024383,3]
[329476331,1718383869021,-10404.25,0.00024383,3]
[329476332,1718383869053,-13450.75,0.00024383,3]
[329476333,1718383869097,-500.0,0.00024383,3]
[329476334,1718383869126,-500.0,0.00024383,3]
[329476335,1718383869314,-1795.44,0.00024383,3]
[329476336,1718383869361,-500.0,0.00024383,3]
[329476337,1718383869423,-500.0,0.00024383,3]
[329476338,1718383869457,-934.83,0.00024383,3]
[329476339,1718383869487,-500.0,0.00024383,3]
[329476340,1718383869506,-500.0,0.00024383,3]
[329476341,1718383869523,-3132.63,0.00024383,3]
[329476342,1718383869580,-500.0,0.00024383,3]
[329476343,1718383869592,-500.0,0.00024383,3]
[329476344,1718383869625,-500.0,0.00024383,3]
[329476345,1718383869672,-221.01472609,0.00024383,3]
[329476346,1718383869698,-1751.45458233,0.00024383,3]
[329476347,1718383869957,-211.52541767,0.00024383,3]
[329476348,1718383869985,-271.22230258,0.00024383,3]
[329476349,1718383870008,-228.77769742,0.00024383,3]
[329476350,1718383870066,-5085.39,0.00024383,3]
[329476351,1718383870101,-4710.15,0.00024383,3]
[329476352,1718383870123,-964.51,0.00024383,3]
[329476353,1718383870209,-500.0,0.00024383,3]
[329476354,1718383870226,-3756.59,0.00024383,3]
[329476355,1718383870268,-546.4,0.00024383,3]
[329476356,1718383870413,-500.0,0.00024383,3]
[329476357,1718383870497,-500.0,0.00024383,3]
[329476358,1718383870563,-500.0,0.00024383,3]
[329476359,1718383870608,-3343.43,0.00024383,3]
[329476360,1718383870650,-787.31,0.00024383,3]
[329476361,1718383870735,-500.0,0.00024383,3]
[329476362,1718383870772,-516.01145325,0.00024383,3]
[329476363,1718383870797,-500.0,0.00024383,3]
[329476364,1718383870870,-500.0,0.00024383,3]
[329476365,1718383870952,-1407.0,0.00024383,3]
[329476366,1718383870989,-1167.98,0.00024383,3]
[329476367,1718383871035,-611.45,0.00024383,3]
[329476368,1718383871061,-500.0,0.00024383,3]
[329476369,1718383871082,-1121.64,0.00024383,3]
[329476370,1718383871140,-500.0,0.00024383,3]
[329476371,1718383871216,-500.0,0.00024383,3]
[329476372,1718383871281,-1928.89,0.00024383,3]
[329476373,1718383871400,-500.0,0.00024383,3]
[329476374,1718383871444,-500.0,0.00024383,3]
[329476375,1718383871485,-569.49,0.00024383,3]
[329476376,1718383871512,-1435.78,0.00024383,3]
[329476377,1718383871544,-15145.53158245,0.00024383,2]
[329476378,1718383871598,-156.03,0.00024384,2]
[329476379,1718383871622,-152.43,0.00024384,2]
[329476380,1718383871640,-500.56,0.00024394,2]
[329476381,1718383871715,-1000.0,0.00024454,2]
[329476382,1718383871752,-869.74,0.00024465,2]
[329476383,1718383871768,-417.89720625,0.00024488,2]
[329476384,1718383871781,-300.0,0.00024557,2]
[329476385,1718383871793,-173.25656806,0.00024557,2]
[329476386,1718383871805,-164.71077271,0.00024557,2]
[329476387,1718383871821,-809.21073304,0.00024557,2]
[329476388,1718383871872,-7352.1255,0.000246,2]
[329476389,1718383871898,-1200.0,0.000246,8]
[329476390,1718383871924,-1000.0,0.000246,2]
[329476391,1718383872005,-1402.61985028,0.00024646,3]
[329476392,1718383872038,-8277.10720247,0.00024646,3]
[329476393,1718383872066,-2091.05978576,0.00024646,3]
[329476394,1718383872095,-295.44814184,0.00024646,3]
[329476395,1718383872123,-353.39205287,0.00024646,3]
[329476396,1718383872145,-6345.02700125,0.00024646,3]
[329476397,1718383872176,-1988.46091552,0.00024646,3]
[329476398,1718383872216,-10262.06623911,0.00024646,3]
[329476399,1718383872237,-9355.03376089,0.00024647,3]
[329476400,1718383872272,-3421.26789501,0.00024647,3]
[329476401,1718383872302,-980.875,0.00024647,3]
[329476402,1718383872373,-326.355,0.00024647,3]
[329476403,1718383873820,-380.68506356,0.00024109,3]
[329476404,1718383873848,-1007.29493644,0.00024109,3]
[329476405,1718383873921,-1387.98,0.00024383,3]
[329476406,1718383873938,-7072.42480282,0.00024647,3]
[329476407,1718383873967,-5236.55082103,0.00024647,3]
[329476408,1718383874200,-49269.39928526,0.00024647,3]
[329476409,1718383874228,-1570.55517767,0.00024647,3]
[329476410,1718383874248,-263.3818754,0.00024647,3]
[329476411,1718383874297,-3352.23989107,0.00024647,3]
[329476412,1718383874348,-1692.57048166,0.00024647,3]
[329476413,1718383874393,-18100.20826966,0.00024647,3]
[329476414,1718383874429,-6363.64804413,0.00024647,3]
[329476415,1718383874521,-3270.43790548,0.00024647,3]
[329476416,1718383874554,-13785.77654692,0.00024647,3]
[329476417,1718383874581,-753.67,0.00024655,3]
[329476418,1718383874603,-500.0,0.00024656,3]
[329476419,1718383874615,-500.0,0.00024656,3]
[329476420,1718383874656,-562.28704186,0.00024656,3]
[329476421,1718383874684,-500.0,0.00024656,3]
[329476422,1718383874732,-500.0,0.00024656,3]
[329476423,1718383874779,-500.0,0.00024656,3]
[329476424,1718383874830,-525.48,0.00024656,3]
[329476425,1718383874845,-500.0,0.00024656,3]
[329476426,1718383874880,-500.0,0.00024656,3]
[329476427,1718383874896,-500.0,0.00024656,3]
[329476428,1718383874912,-500.0,0.00024656,3]
[329476429,1718383874938,-500.0,0.00024656,3]
[329476430,1718383874984,-500.0,0.00024656,3]
[329476431,1718383875052,-500.0,0.00024656,3]
[329476432,1718383875115,-500.0,0.00024656,3]
[329476433,1718383875193,-500.0,0.00024656,3]
[329476434,1718383875233,-191.77673333,0.00024656,3]
[329476435,1718383875279,-512.03,0.00024656,3]
[329476436,1718383875307,-500.0,0.00024656,3]
[329476437,1718383875334,-500.0,0.00024656,3]
[329476438,1718383875349,-500.0,0.00024656,3]
[329476439,1718383875361,-500.0,0.00024656,3]
[329476440,1718383875399,-500.0,0.00024656,3]
[329476441,1718383875436,-500.0,0.00024656,3]
[329476442,1718383875464,-500.0,0.00024656,3]
[329476443,1718383875560,-500.0,0.00024656,3]
[329476444,1718383875596,-500.0,0.00024656,3]
[329476445,1718383875615,-500.0,0.00024656,3]
[329476446,1718383875646,-500.0,0.00024656,3]
[329476447,1718383875677,-500.0,0.00024656,3]
[329476448,1718383875753,-500.0,0.00024656,3]
[329476449,1718383875776,-500.0,0.00024656,3]
[329476450,1718383875796,-610.27669079,0.00024656,7]
[329476451,1718383875821,-500.0,0.00024656,3]
[329476452,1718383875848,-500.0,0.00024656,3]
[329476453,1718383875904,-500.0,0.00024656,3]
[329476454,1718383875995,-500.0,0.00024656,3]
[329476455,1718383876029,-1066.62,0.00024656,3]
[329476456,1718383876058,-500.0,0.00024656,3]
[329476457,1718383876100,-500.0,0.00024656,3]
[329476458,1718383876127,-500.0,0.00024656,3]
[329476459,1718383876195,-500.0,0.00024656,3]
[329476460,1718383876218,-500.0,0.00024656,3]
[329476461,1718383876257,-500.0,0.00024656,2]
[329476462,1718383876283,-500.0,0.00024656,3]
[329476463,1718383876351,-500.0,0.00024656,3]
[329476464,1718383876381,-500.0,0.00024656,3]
[329476465,1718383876397,-560.67,0.00024656,3]
[329476466,1718383876427,-620.18,0.00024656,3]
[329476467,1718383876444,-500.0,0.00024656,3]
[329476468,1718383876457,-500.0,0.00024656,3]
[329476469,1718383876470,-500.0,0.00024656,3]
[329476470,1718383876481,-500.0,0.00024656,3]
[329476471,1718383876493,-500.0,0.00024656,3]
[329476472,1718383876537,-500.0,0.00024656,3]
[329476473,1718383876548,-500.0,0.00024656,3]
[329476474,1718383876573,-500.0,0.00024656,3]
[329476475,1718383876606,-500.0,0.00024656,3]
[329476476,1718383876628,-619.5,0.00024656,3]
[329476477,1718383876729,-1261.12,0.00024656,3]
[329476478,1718383876792,-500.0,0.00024656,3]
[329476479,1718383876889,-500.0,0.00024656,3]
[329476480,1718383876922,-500.0,0.00024656,3]
[329476481,1718383876952,-500.0,0.00024656,3]
[329476482,1718383876970,-500.0,0.00024656,3]
[329476483,1718383876982,-917.98,0.00024656,3]
[329476484,1718383877021,-500.0,0.00024656,3]
[329476485,1718383877036,-500.0,0.00024656,3]
[329476486,1718383877068,-500.0,0.00024656,3]
[329476487,1718383877148,-500.0,0.00024656,3]
[329476488,1718383877168,-500.0,0.00024656,3]
[329476489,1718383877181,-500.0,0.00024656,3]
[329476490,1718383877198,-520.73,0.00024656,3]
[329476491,1718383877217,-636.43,0.00024656,3]
[329476492,1718383877250,-500.0,0.00024656,3]
[329476493,1718383877281,-892.50879789,0.00024656,3]
[329476494,1718383877312,-14.11120211,0.00024656,3]
[329476495,1718383877344,-500.0,0.00024656,3]
[329476496,1718383877381,-500.0,0.00024656,3]
[329476497,1718383877413,-500.0,0.00024656,3]
[329476498,1718383877456,-460.80901374,0.00024656,3]
[329476499,1718383877471,-39.19098626,0.00024656,3]
[329476500,1718383877520,-500.0,0.00024656,3]
[329476501,1718383877565,-500.0,0.00024656,3]
[329476502,1718383877587,-505.42,0.00024656,3]
[329476503,1718383877612,-500.0,0.00024656,3]
[329476504,1718383877658,-500.0,0.00024656,3]
[329476505,1718383877674,-500.0,0.00024656,3]
[329476506,1718383877685,-500.0,0.00024656,3]
[329476507,1718383877736,-500.0,0.00024656,3]
[329476508,1718383877780,-500.0,0.00024656,3]
[329476509,1718383877800,-500.0,0.00024656,3]
[329476510,1718383877853,-244.09214669,0.00024657,2]
[329476511,1718383877876,-199.39503465,0.00024657,2]
[329476512,1718383877887,-1052.5359324,0.00024657,3]
[329476513,1718383877924,-285.4240676,0.00024657,3]
[329476514,1718383877936,-1337.96,0.00024657,3]
[329476515,1718383877954,-2331.14,0.00024657,3]
[329476516,1718383877965,-756.36,0.00024657,3]
[329476517,1718383877994,-724.85,0.00024657,3]
[329476518,1718383878006,-150.04058873,0.00024657,3]
[329476519,1718383878019,-500.0,0.00024657,3]
[329476520,1718383878032,-500.0,0.00024657,3]
[329476521,1718383878051,-468.06,0.00024657,3]
[329476522,1718383878063,-275.31253698,0.00024657,3]
[329476523,1718383878086,-500.0,0.00024657,3]
[329476524,1718383878178,-500.0,0.00024657,3]
[329476525,1718383878194,-500.0,0.00024657,3]
[329476526,1718383878206,-500.0,0.00024657,3]
[329476527,1718383878221,-600.65,0.00024657,3]
[329476528,1718383878249,-596.40701935,0.00024657,3]
[329476529,1718383878280,-500.0,0.00024657,3]
[329476530,1718383878348,-500.0,0.00024657,3]
[329476531,1718383878376,-175.57490116,0.00024657,3]
[329476532,1718383878446,-500.0,0.00024657,3]
[329476533,1718383878474,-790.85,0.00024657,3]
[329476534,1718383878512,-500.0,0.00024657,3]
[329476535,1718383878592,-500.0,0.00024657,3]
[329476536,1718383878651,-500.0,0.00024657,3]
[329476537,1718383878680,-500.0,0.00024657,3]
[329476538,1718383878722,-500.0,0.00024657,3]
[329476539,1718383878760,-500.0,0.00024657,3]
[329476540,1718383878785,-500.0,0.00024657,3]
[329476541,1718383878826,-500.0,0.00024657,3]
[329476542,1718383878880,-171.96301844,0.00024657,3]
[329476543,1718383878919,-507.72,0.00024657,3]
[329476544,1718383878948,-500.0,0.00024657,3]
[329476545,1718383878992,-704.39,0.00024657,3]
[329476546,1718383879025,-500.0,0.00024657,3]
[329476547,1718383879036,-150.0,0.00024657,3]
[329476548,1718383879055,-1728.94,0.00024657,3]
[329476549,1718383879084,-500.0,0.00024657,3]
[329476550,1718383879109,-500.0,0.00024657,3]
[329476551,1718383879126,-272.26879418,0.00024657,3]
[329476552,1718383879139,-614.18,0.00024657,3]
[329476553,1718383879170,-500.0,0.00024657,3]
[329476554,1718383879248,-1011.57,0.00024657,3]
[329476555,1718383879312,-985.32,0.00024657,3]
[329476556,1718383879356,-804.63,0.00024657,3]
[329476557,1718383879453,-727.28,0.00024657,3]
[329476558,1718383879486,-500.0,0.00024657,3]
[329476559,1718383879576,-500.0,0.00024657,3]
[329476560,1718383879626,-568.19,0.00024657,3]
[329476561,1718383879682,-500.0,0.00024657,3]
[329476562,1718383879708,-500.0,0.00024657,3]
[329476563,1718383879720,-500.0,0.00024657,3]
[329476564,1718383879761,-500.0,0.00024657,3]
[329476565,1718383879793,-500.0,0.00024657,3]
[329476566,1718383879823,-545.5801167,0.00024657,3]
[329476567,1718383879835,-366.97621099,0.00024657,3]
[329476568,1718383879921,-500.0,0.00024657,3]
[329476569,1718383879968,-500.0,0.00024657,3]
[329476570,1718383879994,-532.58,0.00024657,3]
[329476571,1718383880010,-500.0,0.00024657,3]
[329476572,1718383880025,-500.0,0.00024657,3]
[329476573,1718383880048,-500.0,0.00024657,3]
[329476574,1718383880102,-500.0,0.00024657,3]
[329476575,1718383880139,-500.0,0.00024657,3]
[329476576,1718383880165,-327.95,0.00024657,3]
[329476577,1718383880197,-1589.68,0.00024657,3]
[329476578,1718383880234,-500.0,0.00024657,3]
[329476579,1718383880254,-500.0,0.00024657,3]
[329476580,1718383880320,-692.27,0.00024657,3]
[329476581,1718383880356,-500.0,0.00024657,3]
[329476582,1718383880384,-1762.91,0.00024657,3]
[329476583,1718383880425,-1443.63734945,0.00024657,3]
[329476584,1718383882928,-500.0,0.00024109,3]
[329476585,1718383882956,-163.6344512,0.00024109,3]
[329476586,1718383882977,-336.3655488,0.00024109,3]
[329476587,1718383882990,-500.0,0.00024382,3]
[329476588,1718383883024,-500.0,0.00024383,3]
[329476589,1718383883060,-273.05,0.00024656,3]
[329476590,1718383883086,-205.19265055,0.00024657,3]
[329476591,1718383883099,-500.0,0.00024657,3]
[329476592,1718383883112,-1035.36,0.00024657,3]
[329476593,1718383883129,-1629.39,0.00024657,3]
[329476594,1718383883140,-1016.82,0.00024657,3]
[329476595,1718383883151,-1155.24,0.00024657,3]
[329476596,1718383883168,-722.97,0.00024657,3]
[329476597,1718383883188,-500.0,0.00024657,3]
[329476598,1718383883216,-1112.84,0.00024657,3]
[329476599,1718383883231,-1435.03,0.00024657,3]
[329476600,1718383883264,-500.0,0.00024657,3]
[329476601,1718383883284,-8816.42,0.00024657,3]
[329476602,1718383883309,-500.0,0.00024657,3]
[329476603,1718383883325,-500.0,0.00024657,3]
[329476604,1718383883345,-500.0,0.00024657,3]
[329476605,1718383883369,-500.0,0.00024657,3]
[329476606,1718383883389,-52.25885064,0.00024657,3]
[329476607,1718383883406,-447.74114936,0.00024657,3]
[329476608,1718383883422,-1846.46,0.00024657,3]
[329476609,1718383883459,-500.0,0.00024657,3]
[329476610,1718383883471,-1575.39,0.00024657,3]
[329476611,1718383883504,-500.0,0.00024657,3]
[329476612,1718383883514,-67.81555064,0.00024657,3]
[329476613,1718383883528,-992.49444936,0.00024657,3]
[329476614,1718383883552,-500.0,0.00024657,3]
[329476615,1718383883589,-500.0,0.00024657,3]
[329476616,1718383883609,-1462.97,0.00024657,3]
[329476617,1718383883668,-1764.41,0.00024657,3]
[329476618,1718383883693,-2281.71,0.00024657,3]
[329476619,1718383883711,-500.0,0.00024657,3]
[329476620,1718383883757,-500.0,0.00024657,3]
[329476621,1718383883780,-500.0,0.00024657,3]
[329476622,1718383883837,-699.92,0.00024657,3]
[329476623,1718383883851,-500.0,0.00024657,3]
[329476624,1718383883908,-500.0,0.00024657,3]
[329476625,1718383883919,-3054.59,0.00024657,3]
[329476626,1718383883947,-500.0,0.00024657,3]
[329476627,1718383883981,-6693.42,0.00024657,3]
[329476628,1718383884018,-8780.08378877,0.00024657,3]
[329476629,1718383884045,-13635.96621123,0.00024657,3]
[329476630,1718383884080,-500.0,0.00024657,3]
[329476631,1718383884105,-500.0,0.00024657,3]
[329476632,1718383884131,-623.42,0.00024657,3]
[329476633,1718383884143,-903.08,0.00024657,3]
[329476634,1718383884167,-500.0,0.00024657,3]
[329476635,1718383884208,-509.14,0.00024657,3]
[329476636,1718383884230,-500.0,0.00024657,3]
[329476637,1718383884276,-1011.48,0.00024657,3]
[329476638,1718383884304,-500.0,0.00024657,3]
[329476639,1718383884320,-736.52,0.00024657,3]
[329476640,1718383884364,-500.0,0.00024657,3]
[329476641,1718383884416,-539.32,0.00024657,3]
[329476642,1718383884441,-2586.74,0.00024657,3]
[329476643,1718383884488,-10445.19,0.00024657,3]
[329476644,1718383884522,-500.0,0.00024657,3]
[329476645,1718383884545,-731.55,0.00024657,3]
[329476646,1718383884558,-6633.55,0.00024657,3]
[329476647,1718383884577,-500.0,0.00024657,3]
[329476648,1718383884632,-483.51077894,0.00024657,3]
[329476649,1718383884660,-1023.83,0.00024657,3]
[329476650,1718383884675,-12093.4,0.00024657,3]
[329476651,1718383884724,-500.0,0.00024657,3]
[329476652,1718383884742,-637.44,0.00024657,3]
[329476653,1718383884776,-3358.77,0.00024657,3]
[329476654,1718383884814,-1681.2,0.00024657,3]
[329476655,1718383884903,-878.64,0.00024657,3]
[329476656,1718383884926,-541.29,0.00024657,3]
[329476657,1718383884959,-2498.72,0.00024657,3]
[329476658,1718383885008,-637.7,0.00024657,3]
[329476659,1718383885080,-1413.21,0.00024657,3]
[329476660,1718383885110,-500.0,0.00024657,3]
[329476661,1718383885155,-500.0,0.00024657,3]
[329476662,1718383885213,-573.65,0.00024657,3]
[329476663,1718383885264,-500.0,0.00024657,3]
[329476664,1718383885308,-500.0,0.00024657,3]
[329476665,1718383885345,-1540.1,0.00024657,3]
[329476666,1718383885435,-166.67112863,0.00024657,3]
[329476667,1718383885572,-665.95,0.00024657,3]
[329476668,1718383885592,-504.13,0.00024657,3]
[329476669,1718383885605,-3924.13,0.00024657,3]
[329476670,1718383885671,-500.0,0.00024657,3]
[329476671,1718383885691,-576.63,0.00024657,3]
[329476672,1718383885742,-2043.84,0.00024657,3]
[329476673,1718383885768,-4997.19,0.00024657,3]
[329476674,1718383885785,-186.37422221,0.00024657,3]